Cogmind - Beta 16 @@@ ROGUE MODE // 2025.11.14 @ 20:42:02 Player: RHAHI Result: Destroyed by X5-LTG(R) with Subdweller Shrapnel Launcher Performance ------------- Evolutions (0) 0 Regions Visited (2) 400 Robots Destroyed (38) 190 Value Destroyed (960) 960 Prototype IDs (0) 0 Alien Tech Used (0) 0 Bonus (0) 0 TOTAL SCORE: 1550 Bonus ------- None Cogmind --------- Core Integrity 0/250 Matter 247/300 Energy 60/200 System Corruption 0% Temperature Cool (0) Movement Walking (280) Ox2 Location -10/Subcaves Parts ------- > --- POWER (1) -------- Subdweller Power Source > --- PROPULSION (2) --- Makeshift Leg Subdweller Monowheel > --- UTILITY (2) ------ Large Storage Unit Shield Generator > --- WEAPON (2) ------- Subdweller Beam Cannon Subdweller Beam Cannon > --- INVENTORY (15) --- Improved Ion Engine Light Treads Subdweller Monowheel Disposable Heat Sink Sensor Array Seismic Detector Light Armor Plating Hacking Suite Makeshift System Shield Heavy EM Pulse Gun Heavy Assault Rifle Light Cannon Battle Cannon Mining Laser Makeshift Axe Peak State ------------ > --- POWER ------------ Subdweller Power Source > --- PROPULSION ------- Makeshift Leg Subdweller Monowheel > --- UTILITY ---------- Large Storage Unit Sensor Array > --- WEAPON ----------- Subdweller Beam Cannon Makeshift Axe > --- INVENTORY -------- Improved Ion Engine Improved Ion Engine Light Treads Subdweller Monowheel Seismic Detector Light Armor Plating Shield Generator Hacking Suite Makeshift System Shield Heavy EM Pulse Gun Subdweller Beam Cannon Heavy Assault Rifle Light Cannon Battle Cannon Mining Laser [Rating: 18] Favorites ----------- Power Improved Ion Engine Engine Improved Ion Engine Propulsion Light Treads Treads Light Treads Leg Makeshift Leg Wheel Subdweller Monowheel Utility Large Storage Unit Device Sensor Array Storage Large Storage Unit Protection Light Armor Plating Weapon Heavy EM Pulse Gun Energy Gun Heavy EM Pulse Gun Energy Cannon Subdweller Beam Cannon Ballistic Gun Assault Rifle Ballistic Cannon Light Cannon Special Weapon Mining Laser Slashing Weapon Makeshift Axe Build | -11 -10 -10 ------- Run | Yrd Mat Sub Slots Evolved . | . . . Power . | . . . Propulsion . | . . . Utility . | . . . Weapon . | . . . Parts Attached 28 | 6 10 12 Power 3 | . 2 1 Engine 3 | . 2 1 Core . | . . . Reactor . | . . . Propulsion 4 | 2 . 2 Treads 2 | 2 . . Leg 1 | . . 1 Wheel 1 | . . 1 Hover . | . . . Flight . | . . . Utility 8 | 1 4 3 Device 4 | 1 2 1 Storage 2 | . 2 . Processor . | . . . Hackware . | . . . Protection 2 | . . 2 Artifact . | . . . Weapon 13 | 3 4 6 Energy Gun 5 | 1 3 1 Energy Cannon 2 | . . 2 Ballistic Gun 2 | 2 . . Ballistic Cannon 2 | . . 2 Launcher . | . . . Special Weapon 1 | . 1 . Impact Weapon . | . . . Slashing Weapon 1 | . . 1 Piercing Weapon . | . . . Special Melee Weapon . | . . . Unidentified Prototypes . | . . . Parts Lost 2 | . . 2 Power . | . . . Propulsion 1 | . . 1 Utility . | . . . Weapon 1 | . . 1 Highest Loss Streak 1 | . . 1 To Critical Strikes . | . . . Average Backups 11 | 3 7 14 Power 1 | 1 . 1 Propulsion . | . . . Utility 5 | 1 3 6 Weapon 4 | . 3 4 Tool/Special . | . . . Unused Backups 16 | . 4 12 Power 4 | . 2 2 Propulsion 1 | . . 1 Utility 9 | . 1 8 Weapon 2 | . 1 1 Tool/Special . | . . . Average Slot Usage (%) 98 | . 98 99 Engine 13 | . 13 14 Treads 19 | . 28 14 Leg 4 | . . 6 Wheel 4 | . . 6 Device 15 | . 22 11 Storage 10 | . 4 14 Protection 1 | . . 2 Energy Gun 8 | . 14 5 Energy Cannon 6 | . . 10 Ballistic Gun 3 | . 8 . Ballistic Cannon 5 | . . 9 Special Weapon 2 | . 4 1 Peak Build Rating 18 | 5 13 18 Average Rating 12 | 3 11 13 On Entrance 5 | . 5 11 Avg Prop Armor Cover (%) 16 | 27 28 4 Naked Turns . | . . . Heaviest Build 44 | 3 32 44 Greatest Support 40 | 3 40 40 Greatest Overweight (x) 2 | . . 2 Average Overweight (x) . | . . . Largest Inventory Capacity 15 | 5 15 15 Average Capacity 11 | 5 7 15 Most Carried 15 | 5 15 15 Average Carried 11 | 3 7 14 Final Capacity 15 | 5 15 15 Final Carried 15 | 5 15 15 Class Distribution -------------------- 71% | Mutant 28% | Scavenger-Mutant Dominant Class ---------------- Mutant | -10/Materials Mutant | -10/Subcaves Resources | -11 -10 -10 ----------- Run | Yrd Mat Sub Matter Collected 1068 | 329 198 541 Remotely . | . . . Salvage Created 1092 | 95 519 478 Parts 66 | 12 28 26 Haulers Intercepted . | . . . Recyclers Shooed 1 | 1 . . Parts Field Recycled . | . . . Retrieved Matter . | . . . Parts Self-Destructed 13 | . . 13 Prevented 3 | . . 3 Parts Restored . | . . . Kills | -11 -10 -10 ------- Run | Yrd Mat Sub Combat Hostiles Destroyed 30 | . 14 16 Guns 19 | . 12 7 Cannons 9 | . . 9 AOE 2 | . 2 . Classes Destroyed 7 | 1 4 2 Tunneler 5 | 5 . . Operator 1 | . 1 . Watcher 2 | . 2 . Swarmer 10 | . 6 4 Grunt 9 | . 8 1 Sentry 1 | . . 1 Subdweller 10 | . . 10 Best Kill Streak 5 | 3 5 2 Combat Bots Only 5 | . 5 2 Max Kills in Single Turn 1 | 1 1 1 Gunslinging . | . . . Exploded 1 | . 1 . Melee . | . . . Uniques/NPCs Destroyed . | . . . Combat | -11 -10 -10 -------- Run | Yrd Mat Sub Hostile Shots Fired 116 | . 53 63 Missed 40 | . 17 23 Hits 76 | . 36 40 Projectile 76 | . 36 40 AOE 2 | . . 2 Critical Strikes 1 | . 1 . Damage Taken 953 | . 347 606 Core 263 | . 84 179 Absorbed by Shields 214 | . 125 89 Core Remaining (%) 100 | 100 . . Volleys Fired 134 | 23 51 60 Largest 2 | 2 2 2 Hottest 160 | 40 100 160 Shots Fired 251 | 46 99 106 Gun 167 | 46 96 25 Cannon 71 | . . 71 Launcher . | . . . Special 13 | . 3 10 Kinetic 134 | 46 23 65 Thermal 21 | . 5 16 Explosive . | . . . Electromagnetic 96 | . 71 25 Robot Hit Streak 13 | 5 11 13 Robot Miss Streak 5 | 3 5 3 Penetration Max . | . . . Secondary Targets 2 | . 2 . Max Gunslinging Chain 1 | . 1 . Shots Hit Robots 143 | 25 55 63 Core Hits 56 | 10 23 23 Critical Kills . | . . . Critical Parts Destroyed 1 | 1 . . Critical Strikes 3 | 1 . 2 Destroy 1 | 1 . . Blast 1 | . . 1 Corrupt 1 | . . 1 Melee Attacks 4 | . . 4 Impact . | . . . Slashing 4 | . . 4 Piercing . | . . . Sneak Attacks . | . . . Combat Hostiles . | . . . Follow-up Attacks . | . . . Damage Inflicted 2479 | 286 1206 987 Guns 1418 | 286 892 240 Cannons 747 | . . 747 Explosions 314 | . 314 . Melee . | . . . Ramming . | . . . Kinetic 1121 | 286 174 661 Thermal 411 | . 325 86 Explosive . | . . . Electromagnetic 947 | . 707 240 Impact . | . . . Slashing . | . . . Piercing . | . . . Highest Corruption . | . . . Average Corruption . | . . . Corruption Purged . | . . . Corruption Blocked . | . . . Overload Shots . | . . . Overflow Damage 8 | . 8 . Projectiles . | . . . Explosions 8 | . 8 . Melee . | . . . Knockbacks 5 | . . 5 Impact . | . . . Kinetic 5 | . . 5 Secondary . | . . . Self-Inflicted Damage 128 | . 128 . Shots 3 | . 3 . Rammed . | . . . Targets Rammed . | . . . Kicked . | . . . Crushed . | . . . Highest Temperature 227 | . 227 72 Average Temperature 51 | . 52 27 Received Heat Transfer 206 | . 78 128 Siege Activations . | . . . Martial Activations . | . . . Shielding Activations . | . . . Robots Disrupted . | . . . Combat Hostiles . | . . . Robots Corrupted . | . . . Combat Hostiles . | . . . Parts Fried 3 | . 2 1 Impact Corruptions . | . . . Robots Melted . | . . . Combat Hostiles . | . . . Parts Melted . | . . . Heat Transferred 586 | . 475 111 Parts Sabotaged . | . . . Parts Stolen . | . . . Parts Stripped . | . . . Power Chain Reactions 6 | . 6 . Alert | -11 -10 -10 ------- Run | Yrd Mat Sub Maximum Alert Level . | . . . Low Security (%) 100 | 100 100 . Level 1 . | . . . Level 2 . | . . . Level 3 . | . . . Level 4 . | . . . Level 5 . | . . . High Security . | . . . Max Security . | . . . Peak Influence 197 | 5 197 . Initial 3 | . 3 . Average 80 | . 97 . Influence Increases 619 | 25 464 130 Destroy 0b10 Robot/C 400 | . 280 120 Destroy 0b10 Robot/NC 40 | 25 15 . Destroy Leader 74 | . 64 10 Successful Hack 14 | . 14 . Select Force Hacks 30 | . 30 . Destroy Structure 31 | . 31 . Lose Combat Pursuer 30 | . 30 . Influence Decreases 619 | 20 378 221 Entered New Map 46 | . 2 44 Time Decay 563 | 20 376 167 Lost Part 10 | . . 10 Squads Dispatched 3 | . 3 . Investigation 2 | . 2 . Extermination . | . . . Reinforcement 1 | . 1 . Assault . | . . . Garrison . | . . . Intercept . | . . . Searches Triggered . | . . . Construction Impeded . | . . . Haulers Reinforced . | . . . Active Scanning Responses . | . . . Cargo Convoy Interrupts . | . . . Stealth | -11 -10 -10 --------- Run | Yrd Mat Sub Distress Signals 2 | . 2 . Communications Jammed . | . . . Distress Signals . | . . . Times Spotted 37 | . 21 16 Peak Tracking Total 5 | . 5 2 Tactical Retreats 2 | . 2 . Traps | -11 -10 -10 ------- Run | Yrd Mat Sub Traps Triggered 1 | . 1 . Indirectly . | . . . Trap Hack Attempts . | . . . Triggered . | . . . Disarmed . | . . . Reprogrammed . | . . . Reused . | . . . Traps Extracted . | . . . Installed . | . . . Triggered . | . . . Machines | -11 -10 -10 ---------- Run | Yrd Mat Sub Machines Disabled . | . . . Max in Single Turn . | . . . Machines Repaired . | . . . Machines Dismantled . | . . . Machines Sabotaged . | . . . Overloaded Fab Kills . | . . . Hacking | -11 -10 -10 --------- Run | Yrd Mat Sub Machines Accessed 7 | . 7 . Terminals 6 | . 6 . Fabricators . | . . . Repair Stations . | . . . Recycling Units 1 | . 1 . Scanalyzers . | . . . Garrison Access . | . . . Total Hacks 17 | . 17 . Successful 13 | . 13 . Failed 4 | . 4 . Catastrophic . | . . . Database Lockouts . | . . . Manual 16 | . 16 . Terminals 16 | . 16 . Fabricators . | . . . Repair Stations . | . . . Recycling Units 1 | . 1 . Scanalyzers . | . . . Garrison Access . | . . . Terminal Hacks 2 | . 2 . Robot Analysis 2 | . 2 . Fabricator Hacks . | . . . Repair Station Hacks . | . . . Recycling Unit Hacks . | . . . Scanalyzer . | . . . Garrison Access Hacks . | . . . Unauthorized Hacks 11 | . 11 . Terminals 10 | . 10 . Track 3 | . 3 . Botnet 2 | . 2 . Skim 5 | . 5 . Fabricators . | . . . Repair Stations . | . . . Recycling Units 1 | . 1 . Tunnel 1 | . 1 . Scanalyzers . | . . . Garrison Access . | . . . Data Cores Recovered . | . . . Used . | . . . Hacking Detections 6 | . 6 . Full Trace Events . | . . . Feedback Events . | . . . Feedback Blocked . | . . . Robot Schematics Acquired . | . . . Robots Built . | . . . Authchips . | . . . Time . | . . . Total Robot Build Rating . | . . . Part Schematics Acquired . | . . . Parts Built . | . . . Authchips . | . . . Time . | . . . Total Part Build Rating . | . . . Part Studies Acquired . | . . . Parts Repaired . | . . . Time . | . . . Parts Recycled . | . . . Recycled Matter . | . . . Retrieved Matter . | . . . Retrieved Components . | . . . Parts Scanalyzed . | . . . Part Schematics Acquired . | . . . Parts Damaged . | . . . Bothacking | -11 -10 -10 ------------ Run | Yrd Mat Sub Used RIF Installer . | . . . Robots Hacked . | . . . Non-combat . | . . . Combat . | . . . Robot Hacks Applied . | . . . Relay Couplers Released . | . . . Fabnet Peak Effective % . | . . . Robots Rewired . | . . . Allies Hacked . | . . . Hacks Repelled . | . . . Allies | -11 -10 -10 -------- Run | Yrd Mat Sub Total Allies . | . . . Largest Group . | . . . Highest-Rated Group . | . . . Highest-Rated Ally . | . . . Total Orders . | . . . Ally Attacks . | . . . Total Damage . | . . . Kills . | . . . Allies Corrupted . | . . . Allies Melted . | . . . Intel | -11 -10 -10 ------- Run | Yrd Mat Sub Active Infowar (turns) 2266 | 6 774 1486 Sensors 1486 | . . 1486 Terrain 430 | . 430 . Seismic 350 | 6 344 . Robot Analysis Total 2 | . 2 . Derelict Logs Recovered . | . . . Drone Launches . | . . . Drone Recoveries . | . . . Exploration | -11 -10 -10 ------------- Run | Yrd Mat Sub Turns Passed 3451 | 239 1154 2058 Spaces Moved 1653 | 189 658 806 Core 307 | 189 118 . Treads 1036 | . 540 496 Legs 283 | . . 283 Wheels 27 | . . 27 Hover . | . . . Flight . | . . . Fastest Speed 50 | 50 50 120 Average Speed 155 | 50 140 192 Slowest Speed 280 | 50 160 280 Overloaded Moves . | . . . Propulsion Burnouts . | . . . Robots Hopped . | . . . Potential Cave-ins . | . . . Cave-ins Triggered . | . . . Exploration Rate (%) 48 | 4 90 51 Regions Visited 2 Branch Regions 1 Pre-discovered Areas 2 | . 2 . Known Exits Taken . | . . . Unknown Exits Taken 2 | 1 1 . Scrap Searched 2 | . . 2 Spaces Dug 4 | . 3 1 Terrain Destroyed 35 | . 32 3 Melee 1 | . . 1 Projectile 5 | . 3 2 AOE 29 | . 29 . Terrain Rammed . | . . . Walls Destroyed . | . . . Machines Disabled . | . . . Actions | -11 -10 -10 --------- Run | Yrd Mat Sub Total 2255 | 289 788 1178 Wait 358 | 64 37 257 Move 1651 | 188 657 806 Hop . | . . . Pick Up 32 | 7 18 7 Fast Attach 13 | 4 5 4 Attach 3 | 1 1 1 Detach 3 | . . 3 Swap 33 | 1 7 25 Drop 24 | 1 12 11 Fire 134 | 23 51 60 Melee 4 | . . 4 Ram . | . . . Kick . | . . . Crush . | . . . Escape Stasis . | . . . Rewire . | . . . Trap . | . . . Miscellaneous . | . . . Route ------- -11/Scrapyard -10/Materials (discovered 6 exits: [*Mat x3] / [*Min x2] / [*Sub]) -10/Subcaves (discovered 2 exits: [*Mat x2]) History --------- Turn | Location | Event 2 | -11/Scrapyard | Met Revision 17 9 | -11/Scrapyard | Discovered new exit (range 15) 240 | -11/Scrapyard | Entered Materials 253 | -10/Materials | Discovered new exit (range 16) 328 | -10/Materials | Discovered new exit (range 16) 338 | -10/Materials | Build established: Mutant 476 | -10/Materials | Discovered new exit (range 10) 606 | -10/Materials | Discovered new exit (range 10) 814 | -10/Materials | Discovered new exit (range 16) 1063 | -10/Materials | Discovered new exit (range 10) 1182 | -10/Materials | Learned location of 1 exit from Recycling 1222 | -10/Materials | Learned location of Recycling (-8) 1251 | -10/Materials | Loaded intel: 15 trap records 1334 | -10/Materials | Learned 2 Mines zone layouts 1394 | -10/Materials | Entered Subcaves 1477 | -10/Subcaves | Discovered new exit (range 5) 1916 | -10/Subcaves | Core integrity fell below 50% 1996 | -10/Subcaves | Discovered new exit (range 11) 2173 | -10/Subcaves | A swath of the cavern ceiling suddenly collapsed 2260 | -10/Subcaves | Shifting Twisted Machinery released Sub. Power Source 2261 | -10/Subcaves | Shifting Twisted Machinery released Sub. Power Source 2585 | -10/Subcaves | Shifting Twisted Machinery released Sub. Beam Cannon 2603 | -10/Subcaves | Shifting Twisted Machinery released Sub. Machine Gun 2777 | -10/Subcaves | Build established: Scavenger-Mutant 2873 | -10/Subcaves | Shifting Twisted Machinery released Hvy. Battle Rifle 3451 | -10/Subcaves | Core integrity fell below 20% 3452 | -10/Subcaves | Destroyed by X5-LTG(R) with Subdweller Shrapnel Launcher Last Messages --------------- 02471_ QJ-B36(R) destroyed. 02477_ OG-IM6(R) destroyed. 02485_ Acquired Sub. Beam Cannon. 02491_ Acquired Sub. Monowheel. Sub. Beam Cannon falls loose from the Twisted Machinery. Sub. Machine Gun falls loose from the Twisted Machinery. 02623_ Dropped Assault Rifle. 02630_ Acquired Sub. Beam Cannon. 02819_ U8-SDE(R) destroyed. 02831_ JW-D9L(R) destroyed. 02837_ Dropped Imp. Ion Engine. 02843_ Acquired 49 matter. 02854_ Acquired Disposable Heat Sink. 02858_ Acquired 57 matter. Hvy. Battle Rifle falls loose from the Twisted Machinery. 03410_ Acquired 46 matter. 03416_ Acquired 48 matter. Map ----- +----------------------------------------------------+ | ### #???????????????????????## ????## #### | | ? #"#???????????????????????## ?#### ##??## | | ?##"#??????????????????? ### ## ###????# | | ##""#?????????????????? ##??????# | | ?## ####???????????????# ##???????# | | ### #??????????????????# ###??????? | | # #??????????????????##### # #??????? | | # ##??????????????????????## #???????? | | ## #????????????????????????#### ##??????? | | ?### #???????????????????????????#### #??????? | | ??## ##??????????????#####??######### #??????? | | ??# ##?????????????# #### # #??????? | | ??## #??????????????# ##??????? | | ### ##??????????????# ## ## # #???????? | | ###???????????????## ###### # #???????? | | ###???????????????# #####???? ^^ ^ ^ ??????? | | #???????????????# ##??????### ^ #????? | | ##??????????????#; #????????## #####????? | | #??????????????#; #?????????####????????? | | ## ##??????????????## ;#?????????????????????? | | ?## ##???????????????# ##?????????????????????? | | ??## ###??????????????## ##????????????????????? | | ???# #?????????????##; ;##???????????????????? | | ???# #?????????#?#?# ; ;;#???????????????????? | | ???# ##???????? " ??# ; ;#???????????????????? | | ???# #???????? ?###;;@ ;#???????????????????? | | ?### #??####? ## #; ;;#???????????????????? | | ## ##?? ## R ;##???????????????????? | | # ! #### ;;#????????????????????? | | # ![ ; ###????????????????????? | | * #### #??????????????????????? | | #&! ] #??###??????????????????????? | | #%%= ### ## &%& ???####????????????###?????? | | &&! #?# ## * ??## ##??????????## ####### | | #" #?# < ## ???# ##????####?# | | ### ##?# # ????# #????# ### % | | ??###### ### #??### #????# ### | | ?????# #?# #?### # ###### ##?### | | ?????## #?# #?# #" %## # ####????? | | ??????# ### #### " "%[ ####???????? | | ??????# ### # # ### !# # ###??????????? | | ###??### ## ###"& #####????????????? | | # ### # ### #?# #????????????????? | | # #?######?####"##????????????????? | | # #???????????????????????????????? | | # ### #???????????????????????????????? | | # ###"" ##???????????????????????????????? | | #""" #"""" #????????????????????????????????? | | "## """""#????????????????????????????????? | | ""?# #"# #????????????????????????????????? | +----------------------------------------------------+ Best States ------------- Heat Dissipation 25 Energy Generation 12 Energy Capacity 265 Matter Stores 300 Matter Capacity 300 Sight Range 16 Robot Scan Range 14 Terrain Scan Range 16 Terrain Scan Density 10 Armor Coverage 150 Evasion (%) 50 Recoil Reduction 2 Item Schematics ----------------- None Robot Schematics ------------------ None Fabricated ------------ Nothing Repaired ---------- Nothing Studied --------- None Alien Tech Used ----------------- None Achievements -------------- None Challenges ------------ None Game ------ Seed EfficiencyDroneSpear Manual? 0 Play Time 00:40:40 Cumulative 72.8 hours Start 2025.11.12 @ 21:15:38 End 2025.11.14 @ 20:42:02 Sessions 3 Manual Loads 0 Difficulty Rogue Special Mode None Game No. 30 Rogue 29 Adventurer 1 Explorer 0 Win Type - Total 2 Types 1/0/1/0/0/0/0/0/0/0 Lore% 36 Gallery% 36 Achievement% 32 Wizard Run 0 Options --------- Layout 2 ASCII 0 Keyboard 1 Movement Vi Keybinds 1 Fullscreen 2 Font 32/Terminus Map View 50x44 Zoom Use 0% Tactical HUD 1 Map Filters NONE Filters NONE Steam 1 RUN: de22d5e3-8d76-4b0a-b3e0-f422a5bbd6d2